bitfinex/quotes_SOLUSD_20241007
["timestamp","ask_amount","ask_price","bid_price","bid_amount"]
[1728317675076,6.7491,148.17,148.13,23.6273]
[1728317675754,6.7499,148.15,148.09,16.8805]
[1728317676075,6.7491,148.17,148.13,6.7507]
[1728317676550,1.3496109,148.21,148.13,6.7507]
[1728317676756,6.7486,148.18,148.14,6.7503]
[1728317677176,6.7486,148.18,148.13,23.6273]
[1728317677579,6.7495,148.16,148.11,21.9554]
[1728317677871,6.7496,148.16,148.11,28.7071]
[1728317678069,6.7496,148.16,148.12,6.7511]
[1728317678265,6.7496,148.16,148.11,28.7067]
[1728317678475,6.62917,148.16,148.12,6.7512]
[1728317678666,6.749,148.17,148.12,6.7512]
[1728317678855,6.7486,148.18,148.14,6.7503]
[1728317679179,6.7491,148.17,148.13,6.7507]
[1728317680574,1.3496109,148.23,148.11,21.9554]
[1728317680780,6.748,148.2,148.15,6.7497]
[1728317680956,6.7485,148.19,148.14,23.6256]
[1728317681158,6.7482,148.19,148.14,16.8754]
[1728317681377,6.7482,148.19,148.15,6.7498]
[1728317681673,6.749,148.17,148.14,16.8754]
[1728317681878,6.7486,148.18,148.14,23.6255]
[1728317682085,6.7484,148.19,148.15,6.7498]
[1728317682457,6.7484,148.19,148.14,16.8754]
[1728317682657,6.7477,148.2,148.15,8.09903545]
[1728317683065,6.7467,148.22,148.18,6.7482]
[1728317683284,6.7475,148.21,148.17,6.7488]
[1728317683470,6.7475,148.21,148.17,6.7489]
[1728317683968,6.7468,148.22,148.17,6.7489]
[1728317685084,16.8641,148.25,148.18,6.7482]
[1728317685682,6.7471,148.21,148.17,6.7488]
[1728317686062,6.7464,148.23,148.19,6.7478]
[1728317686283,1.3496109,148.28,148.16,43.776884]
[1728317686486,23.5776109,148.29,148.2,16.8687]
[1728317686685,6.7453,148.25,148.21,6.7467]
[1728317687160,23.5776109,148.29,148.21,6.7467]
[1728317687366,6.745,148.26,148.21,6.7467]
[1728317687778,6.7454,148.25,148.21,6.7467]
[1728317688093,6.7446,148.27,148.23,6.7461]
[1728317688398,6.7446,148.27,148.24,1.34878514]
[1728317690686,6.7433,148.3,148.26,6.7448]
[1728317690989,1.3496109,148.34,148.29,6.7431]
[1728317690990,6.7414,148.34,148.29,6.7431]
[1728317691188,6.7414,148.34,148.3,8.09123492]
[1728317691491,6.7423,148.32,148.3,1.34823492]
[1728317691676,18.2016109,148.35,148.27,38.7233]
[1728317691863,6.7429,148.31,148.27,38.7233]
[1728317692195,6.7429,148.31,148.27,16.861]
[1728317692371,6.7438,148.29,148.24,23.6094]
[1728317692565,6.7443,148.28,148.24,16.864]
[1728317692767,6.7443,148.28,148.24,23.6097]
[1728317693392,6.7443,148.28,148.24,16.864]
[1728317694379,6.7435,148.29,148.25,1.34867692]
[1728317694691,6.7435,148.29,148.25,8.09387692]
[1728317695067,6.7425,148.32,148.27,6.7444]
[1728317695369,6.7426,148.31,148.28,1.34842887]
[1728317695694,6.7425,148.32,148.27,6.7444]
[1728317696068,6.7427,148.31,148.27,6.7444]
[1728317696269,6.7427,148.31,148.26,23.6065]
[1728317696986,1.9569609,148.36,148.23,22.1683]
[1728317697224,16.8559,148.32,148.23,22.1683]
[1728317697485,6.7431,148.3,148.26,6.7446]
[1728317697785,16.8527,148.35,148.27,1.3484187]
[1728317697965,6.7422,148.32,148.26,16.8614]
[1728317698161,1.3496109,148.34,148.26,16.8614]
[1728317698365,16.8552,148.33,148.24,6.7456]
[1728317698584,6.7443,148.28,148.23,45.7794]
[1728317698889,1.3496109,148.32,148.24,6.7457]
[1728317699188,6.7436,148.29,148.24,6.7457]
[1728317699386,6.7436,148.29,148.25,6.7452]
[1728317700676,16.8573,148.31,148.23,39.0333]
[1728317700874,6.7427,148.31,148.25,16.8628]
[1728317701175,16.8528,148.35,148.25,16.8628]
[1728317701176,25.81554914,148.35,148.25,16.8628]
[1728317701382,6.7438,148.29,148.25,16.8628]
[1728317701575,6.7423,148.32,148.27,6.7444]
[1728317701901,8.96274914,148.34,148.25,16.8628]
[1728317701902,1.3496109,148.33,148.25,16.8628]
[1728317702276,6.7436,148.29,148.25,23.6078]
[1728317702502,16.8569,148.31,148.23,22.1683]
[1728317702671,5.90374762,148.29,148.19,22.3933]
[1728317702867,6.745,148.26,148.21,6.7467]
[1728317703086,6.745,148.26,148.19,22.3933]
[1728317703390,6.7443,148.28,148.24,6.7458]
[1728317703588,1.3496109,148.31,148.22,16.866]
[1728317703789,6.745,148.26,148.22,23.6124]
[1728317704088,6.7446,148.27,148.22,23.6124]
[1728317704689,16.858,148.3,148.22,23.6125]
[1728317704900,16.8603,148.28,148.19,29.141]
[1728317705073,6.7462,148.23,148.19,29.141]
[1728317705271,16.8626,148.26,148.19,22.3933]
[1728317705496,6.7477,148.2,148.16,6.7493]
[1728317705703,6.7475,148.21,148.17,23.621]
[1728317705876,6.7472,148.21,148.16,6.749]
[1728317706080,6.7472,148.21,148.17,6.7489]
[1728317706491,25.82774914,148.24,148.15,22.529]
[1728317706995,6.7473,148.21,148.16,6.7494]
[1728317707399,6.7477,148.2,148.16,6.7494]
[1728317707569,1.3496109,148.25,148.17,1.34938006]
[1728317707775,8.96274914,148.29,148.17,1.34938006]
[1728317707776,6.7453,148.26,148.21,23.6145]
[1728317707988,6.7445,148.27,148.22,8.09522547]
[1728317708171,1.3496109,148.29,148.15,22.529]
[1728317708508,6.7462,148.23,148.19,6.7479]
[1728317708669,6.7459,148.24,148.19,6.7479]
[1728317708870,1.3496109,148.27,148.19,6.7479]
[1728317710096,6.7463,148.23,148.19,6.7479]
[1728317710604,1.3496109,148.27,148.15,22.529]
[1728317710895,6.7482,148.19,148.15,22.529]
[1728317711098,16.8676,148.22,148.15,22.529]
[1728317711489,16.8676,148.22,148.15,29.2788]
[1728317711490,6.7483,148.19,148.15,29.2788]
[1728317711698,6.7486,148.18,148.15,22.529]
[1728317712101,6.7493,148.17,148.16,1.34960536]
[1728317712276,6.7493,148.17,148.13,6.7507]
[1728317712481,6.7493,148.17,148.14,1.34972149]
[1728317713299,6.7497,148.16,148.11,46.5915]
[1728317713897,6.7488,148.18,148.13,6.7504]
[1728317714098,6.7488,148.18,148.14,1.34970288]
[1728317714586,6.7494,148.17,148.12,6.7511]
[1728317714787,6.7498,148.16,148.11,46.5915]
[1728317714983,16.8717,148.18,148.08,16.8821]
[1728317715198,6.7504,148.14,148.1,6.7519]
[1728317715497,18.2213109,148.18,148.08,16.8821]
[1728317715679,6.7511,148.13,148.09,6.7526]
[1728317715881,6.7513,148.12,148.08,16.8821]
[1728317716280,16.874,148.16,148.08,23.6348]
[1728317716281,6.7509,148.13,148.08,23.6348]
[1728317716500,6.7514,148.12,148.08,23.6348]
[1728317716881,1.3496109,148.15,148.08,23.6348]
[1728317717178,6.7508,148.13,148.08,23.6348]
[1728317717701,6.7508,148.13,148.09,1.35016277]
[1728317718211,6.7499,148.15,148.11,6.7517]
[1728317718382,1.3496109,148.2,148.12,1.34986937]
[1728317718578,16.8668,148.22,148.15,6.7494]
[1728317718579,1.3496109,148.21,148.15,6.7494]
[1728317718983,6.7472,148.21,148.16,8.09891363]
[1728317719209,1.3496109,148.24,148.16,1.34961363]
[1728317719410,1.17510219,148.26,148.16,1.34961363]
[1728317719411,1.17510219,148.26,148.16,22.6587]
[1728317719586,1.17510219,148.26,148.2,16.8685]
[1728317719587,6.7458,148.24,148.2,16.8685]
[1728317719888,6.7479,148.2,148.15,6.7497]
[1728317720091,1.3496109,148.23,148.15,6.7497]
[1728317720291,6.7484,148.19,148.14,23.6254]
[1728317720613,6.7485,148.18,148.14,23.6254]
[1728317720790,6.7481,148.19,148.14,23.6254]
[1728317720988,6.7481,148.19,148.15,6.7498]
[1728317721401,6.7471,148.22,148.16,18.22258267]
[1728317721606,1.3496109,148.25,148.13,33.7538]
[1728317721607,6.7457,148.25,148.2,6.7474]
[1728317721906,6.7457,148.25,148.21,1.34914294]
[1728317722206,0.60735,148.36,148.19,22.6587]
[1728317722207,19.38003274,148.32,148.19,22.6587]
[1728317722390,6.7444,148.27,148.23,6.746]
[1728317722588,6.7441,148.28,148.23,6.746]
[1728317723201,6.7441,148.28,148.22,16.866]
[1728317723202,6.7435,148.29,148.24,6.7457]
[1728317723430,1.1744033,148.34,148.25,1.34872261]
[1728317723596,6.7427,148.31,148.26,6.7444]
[1728317724212,6.7422,148.32,148.27,6.744]
[1728317724524,6.7422,148.32,148.27,8.09251723]
[1728317724823,6.7418,148.33,148.28,6.7439]
[1728317725025,6.7418,148.33,148.29,1.34835204]
[1728317725316,1.3496109,148.32,148.23,16.8652]
[1728317725624,6.7434,148.3,148.24,6.7458]
[1728317725830,6.7435,148.29,148.24,6.7458]
[1728317726118,16.8539,148.34,148.25,8.0939017]
[1728317726119,6.7431,148.3,148.25,8.0939017]
[1728317726322,6.7431,148.3,148.26,1.34853226]
[1728317726702,6.7435,148.29,148.23,23.611]
[1728317726898,23.776884,148.31,148.2,16.8688]
[1728317727262,23.776884,148.31,148.19,22.6587]
[1728317727263,6.7464,148.23,148.19,22.6587]
[1728317727402,1.3496109,148.27,148.17,16.8719]
[1728317728423,18.2104109,148.28,148.19,16.8692]
[1728317728630,6.7445,148.27,148.22,6.7466]
[1728317728924,1.3496109,148.26,148.18,16.8709]
[1728317729105,6.7468,148.22,148.18,16.8709]
[1728317729426,23.776884,148.28,148.18,16.8709]
[1728317729598,6.7454,148.25,148.18,16.8709]
[1728317729799,6.7454,148.25,148.2,6.7475]
[1728317730118,6.7447,148.27,148.22,6.7466]
[1728317730303,6.7451,148.26,148.23,1.34892678]
[1728317730498,6.7454,148.25,148.21,6.747]
[1728317730828,6.7449,148.26,148.21,6.747]
[1728317731619,1.3496109,148.29,148.23,6.7461]
[1728317731823,1.3496109,148.29,148.17,33.744]
[1728317731824,1.3496109,148.28,148.22,16.8663]
[1728317732034,6.7458,148.24,148.19,16.8702]
[1728317732919,6.7458,148.24,148.2,6.7476]
[1728317733120,6.7455,148.25,148.21,6.7471]
[1728317733432,1.3496109,148.29,148.22,8.09539115]
[1728317733612,1.3496109,148.32,148.22,1.34899115]
[1728317733937,6.7439,148.29,148.24,6.7454]
[1728317734122,6.7439,148.29,148.25,1.34872648]
[1728317734429,6.7431,148.3,148.26,6.7447]
[1728317734763,6.7437,148.29,148.24,6.7457]
[1728317735030,6.7437,148.29,148.24,8.09437766]
[1728317735230,6.7437,148.29,148.24,1.34867766]
[1728317735431,6.743,148.31,148.26,6.7448]
[1728317735632,6.743,148.31,148.27,1.34857134]
[1728317735831,1.3496109,148.32,148.27,1.34857134]
[1728317736006,24.10700353,148.31,148.22,32.9747]
[1728317736206,6.7456,148.25,148.2,6.7474]
[1728317736509,6.7456,148.25,148.21,6.747]
[1728317736724,6.7456,148.25,148.22,1.34900402]
[1728317736917,6.7456,148.25,148.21,6.747]
[1728317737210,6.7456,148.25,148.22,1.34901303]
[1728317737517,6.744,148.28,148.23,1.34901403]
[1728317737735,6.7436,148.29,148.25,6.7451]
[1728317738024,6.7436,148.29,148.26,1.34870782]
[1728317738407,1.3496109,148.31,148.23,16.8652]
[1728317738610,16.8581,148.3,148.2,16.8684]
[1728317738815,6.7449,148.26,148.22,6.7466]
[1728317739640,1.3496109,148.25,148.17,16.8722]
[1728317739812,6.7472,148.21,148.17,23.6212]
[1728317740014,6.7472,148.21,148.17,16.8722]
[1728317740312,6.7476,148.2,148.15,12.9892]
[1728317740522,6.2572,148.28,148.15,6.2398]
[1728317740523,1.3496109,148.23,148.15,6.2398]
[1728317740824,23.776884,148.26,148.16,16.8731]
[1728317741037,6.7468,148.22,148.17,6.7486]
[1728317741336,6.7468,148.22,148.16,16.8731]
[1728317741337,6.7468,148.22,148.18,6.7484]
[1728317741843,6.7458,148.24,148.2,6.7476]
[1728317742023,6.7458,148.24,148.21,1.34907612]
[1728317742255,18.2109109,148.27,148.2,6.7476]
[1728317742414,18.2109109,148.27,148.15,6.2398]
[1728317742621,6.747,148.22,148.17,6.7485]
[1728317742815,6.7475,148.21,148.17,6.7487]
[1728317743023,1.3496109,148.24,148.15,23.1139]
[1728317743245,1.3496109,148.24,148.17,6.7488]
[1728317743542,6.7472,148.21,148.16,6.7491]
[1728317743745,16.8663,148.23,148.14,6.7502]
[1728317743912,16.8663,148.23,148.11,39.9981]
[1728317743913,6.7491,148.17,148.13,6.7507]
[1728317744115,1.3496109,148.22,148.13,6.7507]
[1728317744536,6.749,148.17,148.13,6.7507]
[1728317745139,1.3496109,148.22,148.14,8.10006086]
[1728317745328,6.7481,148.19,148.14,8.10006086]
[1728317745639,6.7481,148.19,148.15,6.7497]
[1728317745841,6.7481,148.19,148.16,1.34961356]
[1728317746225,1.3496109,148.22,148.16,1.34961356]
[1728317746430,1.3496109,148.25,148.16,18.22281356]
[1728317746629,1.3496109,148.25,148.18,6.7485]
[1728317746822,6.7467,148.22,148.19,1.34936086]
[1728317747936,6.7464,148.23,148.19,6.748]
[1728317748138,1.3496109,148.27,148.2,1.34923626]
[1728317748339,6.7453,148.26,148.22,16.8665]
[1728317748545,6.7454,148.25,148.21,6.7468]
[1728317748719,6.7454,148.25,148.2,6.7475]
[1728317749244,6.7454,148.25,148.21,6.7471]
[1728317749547,6.7454,148.25,148.22,1.34903613]
[1728317749844,7.6068109,148.28,148.23,6.7461]
[1728317750048,6.744,148.28,148.24,8.09454019]
[1728317750419,6.7435,148.3,148.24,1.34884019]
[1728317750620,6.7435,148.3,148.26,6.7448]
[1728317750939,6.7435,148.3,148.27,1.34864471]
[1728317751150,7.5008109,148.32,148.27,1.34864471]
[1728317751151,6.7436,148.29,148.27,1.34864471]
[1728317752244,6.7421,148.33,148.28,8.09258495]
[1728317752450,6.7417,148.33,148.29,6.7434]
[1728317752619,6.7417,148.33,148.3,1.34836994]
[1728317752821,7.34775,148.36,148.31,6.7421]
[1728317753033,0.60735,148.36,148.32,18.20261445]
[1728317753326,0.60735,148.36,148.32,16.8545]
[1728317753527,0.60735,148.36,148.28,16.8589]
[1728317753740,6.7413,148.34,148.29,6.7435]
[1728317754140,6.7418,148.33,148.28,23.6027]
[1728317754346,0.60735,148.36,148.28,23.6024]
[1728317754646,6.7417,148.33,148.28,23.6024]
[1728317754849,6.7413,148.34,148.29,6.7431]
[1728317755234,6.7408,148.35,148.3,6.743]
[1728317755749,0.60735,148.36,148.28,23.6024]
[1728317756043,0.60735,148.36,148.28,16.8589]
[1728317756232,6.7427,148.31,148.25,32.6936]
[1728317756433,6.7427,148.31,148.27,6.7443]
[1728317756737,1.9569609,148.36,148.25,32.6936]
[1728317757050,16.8528,148.35,148.26,6.7448]
[1728317757347,6.7426,148.31,148.26,6.7448]
[1728317758248,1.3496109,148.34,148.27,8.09287832]
[1728317758445,6.7421,148.32,148.27,16.8605]
[1728317758748,6.7421,148.32,148.28,8.09225327]
[1728317759061,1.3496109,148.34,148.27,23.6048]
[1728317759341,6.7427,148.31,148.27,23.6048]
[1728317759550,1.3496109,148.34,148.23,6.1376]
[1728317759727,6.7435,148.29,148.24,16.8638]
[1728317759927,1.3496109,148.34,148.24,16.8638]
[1728317760127,6.7431,148.3,148.26,6.7447]
[1728317760350,6.7427,148.31,148.24,16.8638]
[1728317760521,6.7431,148.3,148.26,6.7448]
[1728317760726,1.3496109,148.34,148.27,8.09260276]
[1728317760963,6.7422,148.32,148.28,6.7439]
[1728317761265,0.60735,148.36,148.28,16.8596]
[1728317762137,6.7412,148.35,148.3,6.7427]
[1728317762335,6.7412,148.35,148.31,8.09068946]
[1728317762540,6.7412,148.35,148.31,1.34818946]
[1728317762736,6.7414,148.34,148.31,1.34818946]
[1728317762942,6.7421,148.32,148.28,23.6035]
[1728317763252,6.7417,148.33,148.29,6.7435]
[1728317763747,1.9569609,148.36,148.29,6.7435]
[1728317763934,0.60735,148.36,148.32,6.7421]
[1728317764140,0.60735,148.36,148.33,1.34797566]
[1728317764341,7.34795,148.36,148.32,6.7421]
[1728317764548,0.60735,148.36,148.31,6.7426]
[1728317764761,6.7408,148.35,148.31,6.7426]
[1728317765557,7.34775,148.36,148.31,6.7426]
[1728317765850,7.34775,148.36,148.32,6.7421]
[1728317766056,0.60735,148.36,148.32,6.7421]
[1728317766757,0.60735,148.36,148.3,16.8568]
[1728317766944,0.60735,148.36,148.32,6.742]
[1728317767258,7.34795,148.36,148.32,6.742]
[1728317767449,7.34795,148.36,148.31,6.7425]
[1728317768046,1.3496109,148.35,148.25,15.3548]
[1728317768235,6.7432,148.3,148.25,15.3548]
[1728317768434,1.3496109,148.35,148.26,6.7448]
[1728317768435,16.8535,148.34,148.26,6.7448]
[1728317768636,6.742,148.33,148.28,6.7435]
[1728317768836,1.3496109,148.35,148.25,15.3548]
[1728317769032,6.7443,148.28,148.23,12.8835]
[1728317769255,1.3496109,148.32,148.23,6.1376]
[1728317769567,1.3496109,148.32,148.24,6.7454]
[1728317769858,6.7438,148.29,148.25,6.7453]
[1728317770061,23.2978,148.33,148.26,6.7448]
[1728317770062,6.7434,148.3,148.26,6.7448]
[1728317770359,6.7425,148.32,148.27,23.6048]
[1728317770661,6.7425,148.32,148.27,16.8607]
[1728317770844,6.7425,148.32,148.28,6.7438]
[1728317771045,23.776884,148.35,148.24,16.8638]
[1728317771249,6.7443,148.28,148.24,16.8638]
[1728317771638,6.7445,148.27,148.23,6.7461]
[1728317771947,6.7445,148.27,148.21,48.9279]
[1728317771948,6.235,148.29,148.21,16.8671]
[1728317772149,6.235,148.29,148.18,16.8708]
[1728317772150,6.7464,148.23,148.18,16.8708]
[1728317772451,6.7464,148.23,148.18,23.6192]
[1728317772759,6.235,148.29,148.24,6.7456]
[1728317772964,6.7427,148.31,148.26,6.7445]
[1728317773170,12.9768,148.33,148.28,6.7436]
[1728317773334,6.7418,148.33,148.29,1.34834165]
[1728317773539,6.7409,148.35,148.3,8.09133867]
[1728317773860,0.60735,148.36,148.26,49.6899]
[1728317774039,6.7411,148.35,148.31,6.7426]
[1728317774364,6.7411,148.35,148.3,23.5999]
[1728317774551,0.60735,148.36,148.3,16.857]
[1728317774759,6.7409,148.35,148.3,23.6]
[1728317775261,0.60735,148.36,148.3,16.857]
[1728317775450,0.60735,148.36,148.32,6.7418]
[1728317775650,7.34775,148.36,148.33,1.34797758]
[1728317775850,0.60735,148.36,148.33,1.34797758]
[1728317776047,0.60735,148.36,148.35,6.7408]
[1728317776467,0.60735,148.36,148.34,6.741]
[1728317776657,0.60735,148.36,148.35,1.34775079]
[1728317777540,0.60735,148.36,148.35,8.08855079]
[1728317777953,0.60735,148.36,148.35,6.7408]
[1728317778340,0.60735,148.36,148.32,23.597]
[1728317778549,7.34775,148.36,148.32,16.8549]
[1728317778859,0.60735,148.36,148.33,6.7416]
[1728317779070,0.60735,148.36,148.35,6.7408]
[1728317779357,0.60735,148.36,148.32,6.742]
[1728317779571,0.60735,148.36,148.33,1.34791846]
[1728317780148,7.34775,148.36,148.32,1.34796369]
[1728317780649,0.60735,148.36,148.32,1.34796369]
[1728317780869,0.60735,148.36,148.33,6.7416]
[1728317781061,0.60735,148.36,148.34,1.34790086]
[1728317781366,0.60735,148.36,148.33,6.7416]
[1728317781563,0.60735,148.36,148.3,6.7427]
[1728317781754,0.60735,148.36,148.28,23.6033]
[1728317782056,6.7423,148.32,148.28,23.6033]
[1728317782461,0.60735,148.36,148.28,16.8595]
[1728317782963,7.34775,148.36,148.31,6.7421]
[1728317783274,6.7409,148.35,148.3,16.8573]
[1728317783567,0.60735,148.36,148.33,6.7416]
[1728317783747,0.60735,148.36,148.34,8.08911208]
[1728317784565,0.60735,148.36,148.35,6.7408]
[1728317786854,0.60735,148.36,148.35,8.08849375]
[1728317787051,0.60735,148.36,148.35,6.7408]
[1728317787253,0.60735,148.36,148.34,16.8526]
[1728317787570,0.60735,148.36,148.33,6.7416]
[1728317788649,0.60735,148.36,148.34,1.34788768]
[1728317789169,0.60735,148.36,148.33,6.7416]
[1728317790572,0.60735,148.36,148.34,1.34789328]
[1728317790754,7.34765,148.36,148.31,16.856]
[1728317790956,6.7416,148.34,148.3,6.7429]
[1728317791167,0.60735,148.36,148.28,16.8591]
[1728317791358,6.7418,148.33,148.29,6.7432]
[1728317791881,6.7413,148.34,148.28,16.8591]
[1728317792086,6.7413,148.34,148.3,6.743]
[1728317792383,6.7413,148.34,148.31,1.34817065]
[1728317792569,6.7413,148.34,148.3,6.743]
[1728317793570,6.7413,148.34,148.29,6.7433]
[1728317794164,6.7413,148.34,148.3,8.09120541]
[1728317794573,0.60735,148.36,148.3,1.34820541]
[1728317794887,6.7408,148.35,148.31,6.7425]
[1728317795184,6.7408,148.35,148.32,1.3481427]
[1728317795571,7.34775,148.36,148.32,8.0901427]
[1728317795754,7.34775,148.36,148.32,6.742]
[1728317796588,7.34775,148.36,148.25,30.59873359]
[1728317796589,0.60735,148.36,148.33,1.34803463]
[1728317796763,0.60735,148.36,148.35,6.7408]
[1728317796962,0.60735,148.36,148.35,8.08822125]
[1728317798281,0.60735,148.36,148.35,6.7408]
[1728317798467,0.60735,148.36,148.35,30.517684]
[1728317798874,0.60735,148.36,148.35,50.517684]
[1728317799184,5e-05,148.36,148.35,50.517684]
[1728317799578,0.1,148.39,148.36,23.776884]
[1728317799779,0.1,148.39,148.38,87.57211759]
[1728317800284,7.37279,148.51,148.47,6.7349]
[1728317800484,7.37279,148.51,148.46,16.8391]
[1728317800485,0.83049,148.51,148.46,23.5748]
[1728317800673,6.7341,148.5,148.44,6.7363]
[1728317800877,6.7354,148.47,148.43,16.8427]
[1728317801084,6.7354,148.47,148.4,16.8461]
[1728317801286,6.7354,148.47,148.41,6.738]
[1728317801677,6.7354,148.47,148.4,16.8461]
[1728317801988,6.7349,148.48,148.43,6.7371]
[1728317803391,6.7349,148.48,148.44,6.7366]
[1728317804193,6.8345,148.49,148.44,6.7366]
[1728317804571,6.8345,148.49,148.42,16.8433]
[1728317804798,6.8345,148.49,148.45,6.7362]
[1728317805095,0.1,148.49,148.46,6.7353]
[1728317805794,0.1,148.49,148.45,6.7362]
[1728317805990,6.8345,148.49,148.44,16.8411]
[1728317806371,6.8345,148.49,148.44,23.5777]
[1728317806873,6.735,148.48,148.44,23.5777]
[1728317807071,6.7367,148.44,148.39,6.7388]
[1728317807286,16.9366,148.49,148.38,22.1945]
[1728317807287,6.5377,148.47,148.38,15.7374]
[1728317807485,6.5377,148.47,148.39,6.7388]
[1728317807486,6.7372,148.43,148.39,6.7388]
[1728317807791,1.3496109,148.46,148.38,16.8483]
[1728317807971,6.7363,148.45,148.4,6.7382]
[1728317808175,13.2734,148.47,148.41,16.845]
[1728317808502,23.0984,148.48,148.41,16.845]
[1728317808682,0.1,148.49,148.44,6.7363]
[1728317808683,6.8345,148.49,148.44,6.7363]
[1728317809670,6.7351,148.48,148.44,6.7363]
[1728317810286,0.1,148.49,148.45,6.7361]
[1728317810287,6.8345,148.49,148.45,6.7361]
[1728317810974,6.8345,148.49,148.43,16.842]
[1728317811190,6.8345,148.49,148.45,6.7362]
[1728317812195,0.1,148.49,148.46,1.34682157]
[1728317812400,0.1,148.49,148.45,6.7362]
[1728317812891,0.1,148.49,148.46,1.34675253]
[1728317813097,0.1,148.49,148.48,6.7349]
[1728317813981,0.1,148.49,148.48,8.08132777]
[1728317814995,0.1,148.49,148.48,31.85821177]
[1728317815984,0.1,148.49,148.48,51.85821177]
[1728317816993,0.1,148.49,148.48,50.511784]
[1728317817995,0.1,148.49,148.42,21.8482]
[1728317818196,0.1,148.49,148.47,6.7352]
[1728317819203,0.1,148.49,148.38,18.29087512]
[1728317819204,0.1,148.49,148.45,16.8403]
[1728317819576,6.7349,148.48,148.45,16.8403]
[1728317819781,6.8347,148.49,148.45,16.8403]
[1728317819977,0.1,148.49,148.42,16.8434]
[1728317820493,0.1,148.49,148.38,6.2164]
[1728317820494,1.4496109,148.49,148.38,6.2164]
[1728317820697,6.7375,148.43,148.39,16.8467]
[1728317821009,0.1,148.49,148.41,6.738]
[1728317821302,6.7357,148.47,148.42,6.7376]
[1728317821501,1.4496109,148.49,148.35,15.7376]
[1728317821675,1.4496109,148.49,148.42,16.8437]
[1728317821876,6.7359,148.46,148.42,16.8437]
[1728317822098,6.7363,148.45,148.4,6.7384]
[1728317822319,6.7359,148.46,148.39,16.8471]
[1728317822598,1.4496109,148.49,148.45,6.7362]
[1728317822599,0.1,148.49,148.45,6.7362]
[1728317822804,0.1,148.49,148.46,8.08249954]
[1728317823683,0.1,148.49,148.46,1.34679954]
[1728317823885,0.1,148.49,148.47,1.34660526]
[1728317824387,0.1,148.49,148.48,6.7349]
[1728317824822,0.1,148.49,148.48,8.0813688]
[1728317826200,0.1,148.49,148.48,31.8582528]
[1728317826801,0.1,148.49,148.48,51.8582528]
[1728317827011,0.83049,148.51,148.48,75.72208639]
[1728317827204,0.83049,148.51,148.5,50.510884]
[1728317827389,0.83049,148.51,148.5,51.85680267]
[1728317827709,0.83049,148.51,148.5,50.510884]
[1728317828006,0.83049,148.51,148.5,6.734]
[1728317828210,7.56419,148.51,148.47,6.7353]
[1728317828390,7.56419,148.51,148.45,16.8398]
[1728317828391,0.83049,148.51,148.48,6.7348]
[1728317829417,0.83049,148.51,148.5,6.734]
[1728317829897,0.83049,148.51,148.49,23.5699]
[1728317831311,0.83049,148.51,148.49,16.8356]
[1728317831520,0.83049,148.51,148.5,6.734]
[1728317832211,0.83049,148.51,148.5,8.08026559]
[1728317832416,0.83049,148.51,148.5,6.734]
[1728317832614,0.83049,148.51,148.5,51.85716669]
[1728317832815,0.83049,148.51,148.5,50.510884]
[1728317833521,0.83049,148.51,148.5,51.85689697]
[1728317833705,0.83049,148.51,148.5,30.510884]
[1728317833912,0.83049,148.51,148.5,26.734]
[1728317834216,0.83049,148.51,148.5,30.510884]
[1728317834391,0.83049,148.51,148.5,6.734]
[1728317834596,0.83049,148.51,148.5,30.510884]
[1728317834994,0.83049,148.51,148.5,6.734]
[1728317835216,0.83049,148.51,148.49,23.5699]
[1728317835898,0.83049,148.51,148.5,8.08038904]